bitfinex/quotes_BTCUSD_20250423
["timestamp","ask_amount","ask_price","bid_price","bid_amount"]
[1745435711470,0.31308962,93251.0,93250.0,0.0004253]
[1745435713049,0.13476877,93251.0,93250.0,0.0004253]
[1745435713269,0.12489014,93251.0,93250.0,0.0500253]
[1745435713705,0.018,93251.0,93250.0,0.0500253]
[1745435713933,0.008,93251.0,93250.0,0.0500253]
[1745435714127,0.008,93251.0,93250.0,0.26450251]
[1745435714375,0.008,93251.0,93250.0,0.60450251]
[1745435714376,0.016,93251.0,93250.0,0.60450251]
[1745435714579,0.016,93251.0,93250.0,0.3900253]
[1745435714806,0.008,93251.0,93250.0,0.3900253]
[1745435714988,0.00046513,93264.0,93251.0,0.34]
[1745435715164,0.10689014,93263.0,93251.0,0.34]
[1745435715363,0.10689014,93263.0,93253.0,0.34]
[1745435715568,0.10689014,93263.0,93255.0,0.34]
[1745435715761,0.10689014,93263.0,93255.0,0.35072328]
[1745435715939,0.10689014,93263.0,93258.0,0.21445662]
[1745435716144,0.10689014,93263.0,93259.0,0.01072282]
[1745435716405,0.003,93263.0,93260.0,0.21445208]
[1745435716608,0.00046513,93264.0,93261.0,0.01072259]
[1745435716909,0.00046513,93264.0,93260.0,0.21445208]
[1745435717058,0.00546513,93264.0,93261.0,0.01072259]
[1745435717263,0.00546513,93264.0,93262.0,0.21444961]
[1745435717697,0.00046513,93264.0,93262.0,0.21444961]
[1745435717892,0.003,93263.0,93262.0,0.21444961]
[1745435718300,0.00046513,93264.0,93261.0,0.34]
[1745435718502,0.00546513,93264.0,93261.0,0.34]
[1745435718707,0.01346513,93264.0,93261.0,0.35072259]
[1745435718880,0.01346513,93264.0,93262.0,0.21444961]
[1745435719085,0.005,93263.0,93262.0,0.21444961]
[1745435719308,0.00846513,93264.0,93262.0,0.21444961]
[1745435719717,0.01346513,93264.0,93262.0,0.21444961]
[1745435720060,0.00546513,93264.0,93263.0,0.0463]
[1745435720245,0.01246513,93264.0,93263.0,0.0463]
[1745435720652,0.00546513,93264.0,93261.0,0.35072259]
[1745435720854,0.00546513,93264.0,93262.0,0.21444961]
[1745435720855,0.00046513,93264.0,93262.0,0.21444961]
[1745435721058,0.00546513,93264.0,93262.0,0.21444961]
[1745435721265,0.005,93263.0,93262.0,0.55444961]
[1745435721468,0.00546513,93264.0,93263.0,0.34]
[1745435721670,0.00046513,93264.0,93263.0,0.34]
[1745435721876,0.00446513,93264.0,93263.0,0.34]
[1745435722528,0.00446513,93264.0,93262.0,0.001]
[1745435722731,0.00346513,93264.0,93262.0,0.001]
[1745435722905,0.00546513,93264.0,93263.0,0.001]
[1745435723126,0.00246513,93264.0,93263.0,0.001]
[1745435723437,0.00746513,93264.0,93263.0,0.002]
[1745435724336,0.11235527,93264.0,93263.0,0.001]
[1745435724466,0.11435527,93264.0,93263.0,0.001]
[1745435724685,0.36878369,93264.0,93263.0,0.001]
[1745435724885,0.37740028,93264.0,93263.0,0.002]
[1745435725538,0.49264028,93264.0,93263.0,0.002]
[1745435725747,0.48864028,93264.0,93263.0,0.001]
[1745435725972,0.48864028,93264.0,93241.0,0.0004253]
[1745435725973,0.50318113,93264.0,93241.0,0.0004253]
[1745435726157,0.27771576,93251.0,93241.0,0.0004253]
[1745435726479,0.15559014,93251.0,93241.0,0.0004253]
[1745435726690,0.15559014,93251.0,93241.0,0.3404253]
[1745435726691,0.10689014,93251.0,93241.0,0.3404253]
[1745435727621,0.11489014,93251.0,93241.0,0.55492318]
[1745435727881,0.11989014,93251.0,93241.0,0.55492318]
[1745435728135,0.11989014,93251.0,93245.0,0.21448808]
[1745435729289,0.11989014,93251.0,93247.0,0.21448374]
[1745435729566,0.013,93251.0,93250.0,0.21590251]
[1745435730167,0.013,93251.0,93250.0,0.0014253]
[1745435730351,0.005,93251.0,93250.0,0.21590251]
[1745435730563,0.00146513,93264.0,93261.0,0.21445039]
[1745435730962,0.00146513,93264.0,93260.0,0.21445388]
[1745435730963,0.00046513,93264.0,93260.0,0.21445388]
[1745435731166,0.00046513,93264.0,93261.0,0.21444976]
[1745435731364,0.00046513,93264.0,93260.0,0.21445388]
[1745435733259,0.00846513,93264.0,93263.0,0.21444731]
[1745435733624,0.00646513,93264.0,93263.0,0.21444731]
[1745435733836,0.01446513,93264.0,93263.0,0.21444731]
[1745435734238,0.00046513,93264.0,93260.0,0.21445388]
[1745435734472,0.00046513,93264.0,93261.0,0.21445016]
[1745435734687,0.01546513,93264.0,93263.0,0.001]
[1745435735513,0.00846513,93264.0,93261.0,0.21445016]
[1745435735738,0.00046513,93264.0,93260.0,0.34]
[1745435735941,0.00046513,93264.0,93260.0,0.55445353]
[1745435736279,0.00846513,93264.0,93261.0,0.21444966]
[1745435736630,0.00046513,93264.0,93261.0,0.21444966]
[1745435736830,0.00446513,93264.0,93262.0,0.21444764]
[1745435737284,0.00946513,93264.0,93262.0,0.21444764]
[1745435737430,0.01146513,93264.0,93262.0,0.21444764]
[1745435737844,0.01646513,93264.0,93262.0,0.21444764]
[1745435738060,0.01146513,93264.0,93262.0,0.21444764]
[1745435738256,0.01646513,93264.0,93262.0,0.001]
[1745435738701,0.01646513,93264.0,93262.0,0.21544755]
[1745435738926,0.01046513,93264.0,93262.0,0.21544755]
[1745435739132,0.01746513,93264.0,93262.0,0.21544755]
[1745435739311,0.01746513,93264.0,93263.0,0.21444731]
[1745435739461,0.01746513,93264.0,93262.0,0.001]
[1745435739852,0.01746513,93264.0,93262.0,0.21544805]
[1745435740204,0.00046513,93264.0,93262.0,0.21444805]
[1745435740405,0.00746513,93264.0,93262.0,0.21444805]
[1745435741799,0.01246513,93264.0,93262.0,0.21444805]
[1745435742046,0.00546513,93264.0,93262.0,0.21444805]
[1745435742268,0.01246513,93264.0,93262.0,0.21444805]
[1745435743153,0.01246513,93264.0,93261.0,0.21444966]
[1745435743857,0.01246513,93264.0,93263.0,0.21444731]
[1745435744365,0.00746513,93264.0,93262.0,0.21444766]
[1745435744479,0.00746513,93264.0,93263.0,0.21444731]
[1745435744683,0.01246513,93264.0,93263.0,0.21444731]
[1745435744915,0.00546513,93264.0,93263.0,0.21444731]
[1745435745128,0.01146513,93264.0,93263.0,0.21444731]
[1745435745566,0.00546513,93264.0,93263.0,0.21444731]
[1745435745934,0.00746513,93264.0,93263.0,0.21444731]
[1745435746138,0.01246513,93264.0,93263.0,0.21444731]
[1745435750443,0.01246513,93264.0,93261.0,0.21444966]
[1745435751130,0.01246513,93264.0,93260.0,0.56517537]
[1745435751300,0.00546513,93264.0,93260.0,0.56517537]
[1745435751504,0.01146513,93264.0,93262.0,0.21444742]
[1745435752033,0.00046513,93264.0,93262.0,0.21444742]
[1745435752379,0.01146513,93264.0,93262.0,0.21444742]
[1745435752752,0.00546513,93264.0,93262.0,0.21444742]
[1745435752914,0.01046513,93264.0,93262.0,0.21444742]
[1745435753120,0.00546513,93264.0,93262.0,0.21444742]
[1745435753558,0.00946513,93264.0,93262.0,0.21544742]
[1745435754355,0.01646513,93264.0,93262.0,0.21544742]
[1745435754776,0.00946513,93264.0,93262.0,0.21544742]
[1745435755262,0.01546513,93264.0,93262.0,0.21544742]
[1745435756366,0.01546513,93264.0,93262.0,0.001]
[1745435758937,0.01546513,93264.0,93263.0,0.21444731]
[1745435759929,0.01546513,93264.0,93263.0,0.55444731]
[1745435760510,0.00646513,93264.0,93263.0,0.55444731]
[1745435760681,0.00046513,93264.0,93263.0,0.55444731]
[1745435760894,0.00646513,93264.0,93263.0,0.55444731]
[1745435761315,0.00046513,93264.0,93263.0,0.55444731]
[1745435761719,0.00446513,93264.0,93263.0,0.55444731]
[1745435762147,0.00946513,93264.0,93263.0,0.55544731]
[1745435762547,0.00446513,93264.0,93263.0,0.55444731]
[1745435763248,0.00746513,93264.0,93263.0,0.55544731]
[1745435764078,0.00746513,93264.0,93263.0,0.55644731]
[1745435765013,0.00346513,93264.0,93263.0,0.55644731]
[1745435765222,0.00046513,93264.0,93263.0,0.55544731]
[1745435765373,0.00446513,93264.0,93263.0,0.55544731]
[1745435765585,0.00646513,93264.0,93263.0,0.55644731]
[1745435765781,0.00246513,93264.0,93263.0,0.342]
[1745435765989,0.00446513,93264.0,93263.0,0.343]
[1745435767190,0.00846513,93264.0,93263.0,0.343]
[1745435769209,0.00846513,93264.0,93263.0,0.3847]
[1745435770724,0.00846513,93264.0,93263.0,0.3347]
[1745435772505,0.00846513,93264.0,93263.0,0.293]
[1745435777671,0.05656513,93264.0,93263.0,0.293]
[1745435777872,0.05656513,93264.0,93263.0,0.003]
[1745435778059,0.05656513,93264.0,93263.0,0.21744731]
[1745435783301,0.00846513,93264.0,93263.0,0.21744731]
[1745435784222,0.00846513,93264.0,93263.0,0.55744731]
[1745435785631,0.00846513,93264.0,93263.0,0.66433745]
[1745435786517,0.00046513,93264.0,93263.0,0.66233745]
[1745435786737,0.00246513,93264.0,93263.0,0.66333745]
[1745435787666,0.00346513,93264.0,93263.0,0.66333745]
[1745435793205,0.00085,93302.0,93301.0,0.21435997]
[1745435793699,0.00090983,93302.0,93299.0,0.01071822]
[1745435793972,0.00090983,93302.0,93300.0,0.21436227]
[1745435794205,0.0479,93314.0,93300.0,0.21436227]
[1745435794206,0.04710983,93314.0,93313.0,0.2143324]
[1745435794453,0.04710983,93314.0,93300.0,0.01085785]
[1745435794686,0.04710983,93314.0,93312.0,0.21433416]
[1745435794962,0.10689014,93313.0,93301.0,0.21435997]
[1745435795210,0.10689014,93313.0,93300.0,0.00013974]
[1745435795211,0.00351363,93312.0,93300.0,0.00013974]
[1745435795440,0.10689014,93311.0,93300.0,0.00013974]
[1745435795667,0.00351363,93310.0,93300.0,0.00013974]
[1745435795903,0.10689014,93309.0,93300.0,0.00013974]
[1745435796129,0.00351363,93308.0,93300.0,0.00013974]
[1745435796384,0.10689014,93307.0,93300.0,0.00013974]
[1745435796960,0.10689014,93307.0,93300.0,0.00113974]
[1745435797181,0.0938,93306.0,93300.0,0.00113974]
[1745435797413,0.0938,93306.0,93300.0,0.00013974]
[1745435797625,0.0938,93306.0,93301.0,0.21435997]
[1745435797899,0.00085,93302.0,93301.0,0.21435997]
[1745435798815,0.00085,93302.0,93301.0,0.21535997]
[1745435799004,0.00085,93302.0,93301.0,0.001]
[1745435799986,0.00085,93302.0,93301.0,0.21435997]
[1745435800189,0.00685,93302.0,93301.0,0.21535997]
[1745435800633,0.01585,93302.0,93301.0,0.21635997]
[1745435803496,0.01585,93302.0,93301.0,0.002]
[1745435803942,0.01585,93302.0,93301.0,0.21635997]
[1745435804668,0.01585,93302.0,93301.0,0.002]
[1745435805843,0.01585,93302.0,93301.0,0.21635997]
[1745435806295,0.01585,93302.0,93301.0,0.002]
[1745435816712,0.01585,93302.0,93301.0,0.342]
[1745435816975,0.01585,93302.0,93301.0,0.3907]
[1745435817946,0.00685,93302.0,93301.0,0.3897]
[1745435818383,0.01085,93302.0,93301.0,0.3907]
[1745435818619,0.01085,93302.0,93301.0,0.49759014]
[1745435818864,0.0008512,93315.0,93301.0,0.49759014]
[1745435818865,0.0008512,93315.0,93314.0,0.55433011]
[1745435819356,0.0979512,93315.0,93301.0,0.003]
[1745435819578,0.01071719,93308.0,93301.0,0.002]
[1745435819801,0.20399014,93307.0,93301.0,0.002]
[1745435820473,0.0495,93307.0,93305.0,0.21435078]
[1745435820676,0.0495,93307.0,93304.0,0.01071765]
[1745435820913,0.0495,93307.0,93306.0,0.55434848]
[1745435821147,0.0018498,93329.0,93307.0,0.386]
[1745435821399,0.0018498,93329.0,93328.0,0.34]
[1745435821609,0.1082098,93329.0,93328.0,0.34]
[1745435822072,0.01071547,93323.0,93305.0,0.001]
[1745435822275,0.11040377,93322.0,93305.0,0.001]
[1745435822520,0.10689014,93322.0,93308.0,0.34]
[1745435822731,0.01071593,93319.0,93305.0,0.00013974]
[1745435822938,0.10689014,93318.0,93306.0,0.21434848]
[1745435823459,0.10689014,93318.0,93308.0,0.21434189]
[1745435823658,0.10689014,93318.0,93310.0,0.21433912]
[1745435823995,0.0484,93317.0,93312.0,0.21433466]
[1745435824205,0.15649014,93316.0,93312.0,0.21433466]
[1745435824399,0.15649014,93316.0,93310.0,0.21433912]
[1745435824599,0.01071685,93311.0,93305.0,0.00013974]
[1745435824799,0.10689014,93310.0,93305.0,0.00013974]
[1745435825004,0.0454,93309.0,93305.0,0.00013974]
[1745435825204,0.22504686,93314.0,93305.0,0.00013974]
[1745435825205,0.27578704,93307.0,93305.0,0.00013974]
[1745435825412,0.27578704,93307.0,93301.0,0.001]
[1745435825413,0.22889852,93302.0,93301.0,0.001]
[1745435825613,0.22514611,93273.0,93262.0,0.03]
[1745435825849,0.0942,93271.0,93263.0,0.00048463]
[1745435826056,0.10689014,93270.0,93263.0,0.00048463]
[1745435826999,0.10689014,93270.0,93266.0,0.21443949]
[1745435827182,0.10689014,93270.0,93268.0,0.21443429]
[1745435827580,0.10689014,93270.0,93266.0,0.21443949]
[1745435827789,0.10689014,93270.0,93267.0,0.21443583]
[1745435828123,0.10989014,93270.0,93267.0,0.21443583]
[1745435828579,0.10989014,93270.0,93263.0,0.34048463]
[1745435828783,0.10989014,93270.0,93265.0,0.21444044]
[1745435829411,0.10989014,93270.0,93263.0,0.34048463]
[1745435829622,0.11289014,93270.0,93263.0,0.34048463]
[1745435830097,0.10989014,93270.0,93266.0,0.21443996]
[1745435830304,0.11289014,93270.0,93266.0,0.21443996]
[1745435830805,0.11489014,93270.0,93266.0,0.21443996]
[1745435831025,0.10689014,93270.0,93265.0,0.34]
[1745435831231,0.10689014,93270.0,93266.0,0.21444041]
[1745435831443,0.11089014,93270.0,93268.0,0.21443572]
[1745435831954,0.10889014,93270.0,93266.0,0.21444041]
[1745435832159,0.10889014,93270.0,93268.0,0.21443569]
[1745435832353,0.11189014,93270.0,93266.0,0.21444041]
[1745435832570,0.005,93270.0,93269.0,0.34]
[1745435832962,0.42564,93272.0,93269.0,0.34]
[1745435833378,0.003,93270.0,93269.0,0.34]
[1745435833753,0.10989014,93270.0,93263.0,0.34048463]
[1745435833954,0.21444501,93264.0,93263.0,0.00048463]
[1745435834154,0.10689014,93264.0,93263.0,0.00048463]
[1745435835145,0.12794462,93264.0,93263.0,0.00048463]
[1745435835404,0.18064462,93264.0,93263.0,0.00148463]
[1745435836145,0.17713099,93264.0,93263.0,0.00148463]
[1745435836483,0.17413099,93264.0,93263.0,0.00148463]
[1745435836750,0.17913099,93264.0,93263.0,0.00248463]
[1745435838693,0.393576,93264.0,93263.0,0.00248463]
[1745435839809,0.17913099,93264.0,93263.0,0.00248463]
[1745435840895,0.393576,93264.0,93263.0,0.00248463]
[1745435845157,0.01454085,93260.0,93240.0,0.21449992]
[1745435845368,0.01454085,93258.0,93240.0,0.21449992]
[1745435845600,0.01454085,93256.0,93240.0,0.21449992]
[1745435845841,0.01454085,93254.0,93246.0,0.21448529]
[1745435846052,0.10689014,93253.0,93240.0,0.21449992]
[1745435846251,0.10689014,93253.0,93242.0,0.21449398]
[1745435846597,0.10689014,93253.0,93245.0,0.21448673]
[1745435846824,0.10689014,93253.0,93243.0,0.21449331]
[1745435847196,0.10689014,93253.0,93229.0,0.21452481]
[1745435847492,0.10689014,93253.0,93221.0,0.40666667]
[1745435847493,0.01072455,93244.0,93231.0,0.002]
[1745435847684,0.01454085,93242.0,93231.0,0.002]
[1745435847896,0.3359266,93242.0,93231.0,0.002]
[1745435848095,0.12143099,93242.0,93231.0,0.002]
[1745435848635,0.3359266,93242.0,93231.0,0.002]
[1745435848866,0.22084247,93242.0,93231.0,0.002]
[1745435849074,0.12143099,93242.0,93231.0,0.002]
[1745435850400,0.13443099,93242.0,93241.0,0.0024253]
[1745435850978,0.13543099,93242.0,93241.0,0.0024253]
[1745435860733,0.14527324,93242.0,93241.0,0.0024253]
[1745435861704,0.13073239,93242.0,93241.0,0.0024253]
[1745435862238,0.12089014,93242.0,93241.0,0.0024253]
[1745435862769,0.014,93242.0,93241.0,0.0024253]
[1745435863661,0.008,93242.0,93241.0,0.05212801]
[1745435863840,0.008,93242.0,93241.0,0.43962801]
[1745435863970,0.003,93242.0,93241.0,0.4356253]
[1745435864177,0.003,93242.0,93241.0,0.43532311]
[1745435864820,0.001,93242.0,93241.0,0.43532311]
[1745435865257,0.003,93242.0,93241.0,0.43632311]
[1745435865682,0.001,93242.0,93241.0,0.21071148]
[1745435865889,0.001,93242.0,93240.0,0.21449872]
[1745435866087,0.003,93242.0,93240.0,0.21449872]
[1745435866506,0.002,93242.0,93240.0,0.21449872]
[1745435866749,0.003,93242.0,93240.0,0.21449872]
[1745435867191,0.002,93242.0,93240.0,0.21449872]
[1745435867399,0.003,93242.0,93240.0,0.21449872]
[1745435868132,0.003,93242.0,93239.0,0.22522759]
[1745435868133,0.003,93242.0,93241.0,0.21449791]
[1745435868523,0.004,93242.0,93241.0,0.21449791]
[1745435868937,0.003,93242.0,93241.0,0.21449791]
[1745435869343,0.004,93242.0,93241.0,0.21449791]
[1745435869546,0.003,93242.0,93241.0,0.21449791]
[1745435869750,0.002,93242.0,93241.0,0.21449791]
[1745435869958,0.003,93242.0,93241.0,0.21449791]
[1745435873593,0.003,93242.0,93241.0,0.37078805]
[1745435873775,1e-08,93242.0,93241.0,0.39388805]
[1745435874457,0.0487,93287.0,93263.0,0.21444731]
[1745435874662,0.10288,93271.0,93263.0,0.21444731]
[1745435876074,0.00113961,93264.0,93263.0,0.21444731]
[1745435876289,0.00313961,93264.0,93263.0,0.21444731]
[1745435876918,0.00513961,93264.0,93263.0,0.21444731]
[1745435879107,0.00513961,93264.0,93263.0,0.55444731]
[1745435883076,0.00113961,93264.0,93263.0,0.55444731]
[1745435883282,0.00013961,93264.0,93263.0,0.55444731]
[1745435883561,0.00213961,93264.0,93263.0,0.55444731]
[1745435883885,0.00213961,93264.0,93262.0,0.34]
[1745435884085,0.00213961,93264.0,93263.0,0.21444731]
[1745435884697,0.00113961,93264.0,93263.0,0.21444731]
[1745435885159,0.00213961,93264.0,93263.0,0.21444731]
[1745435885395,0.00113961,93264.0,93263.0,0.21444731]
[1745435885599,0.00013961,93264.0,93263.0,0.21444731]
[1745435885770,0.00113961,93264.0,93263.0,0.21444731]
[1745435885952,0.00213961,93264.0,93263.0,0.21444731]
[1745435886361,0.00313961,93264.0,93263.0,0.21444731]
[1745435891065,0.00313961,93264.0,93263.0,0.55444731]
[1745435894146,0.00313961,93264.0,93263.0,0.34]
[1745435894366,0.0471,93259.0,93241.0,0.001]
[1745435894582,0.01072351,93253.0,93241.0,0.001]
[1745435894819,0.27227939,93259.0,93241.0,0.001]
[1745435894820,0.25401014,93252.0,93241.0,0.001]
[1745435896054,0.25701014,93252.0,93241.0,0.001]
[1745435897329,0.25701014,93252.0,93247.0,0.21448411]
[1745435897470,0.25701014,93252.0,93247.0,0.22520831]
[1745435897829,0.15509014,93252.0,93248.0,0.21448181]
[1745435898061,0.10192,93251.0,93248.0,0.21448181]
[1745435898178,0.10689014,93250.0,93248.0,0.21448181]
[1745435898376,0.10192,93249.0,93248.0,0.21448181]
[1745435899186,0.10689014,93250.0,93248.0,0.21548181]
[1745435899400,0.10592,93249.0,93248.0,0.21648181]
[1745435899805,0.10992,93249.0,93248.0,0.21748181]
[1745435900001,0.10992,93249.0,93248.0,0.003]
[1745435900206,0.10592,93249.0,93248.0,0.001]
[1745435900613,0.10592,93249.0,93248.0,0.21548181]
[1745435900845,0.10192,93249.0,93248.0,0.55448181]
[1745435901047,0.10192,93249.0,93248.0,0.55548181]
[1745435901399,0.10192,93249.0,93246.0,0.22521036]
[1745435901856,0.0452,93252.0,93251.0,0.21447491]
[1745435903702,0.0452,93252.0,93251.0,0.001]
[1745435903703,0.15609014,93252.0,93251.0,0.001]
[1745435903848,0.15960377,93252.0,93251.0,0.001]
[1745435904193,0.16460377,93252.0,93251.0,0.002]
[1745435904408,0.22173099,93252.0,93251.0,0.002]
[1745435905287,0.23293595,93252.0,93251.0,0.002]
[1745435905727,0.22173099,93252.0,93251.0,0.002]
[1745435906162,0.20719014,93252.0,93251.0,0.002]
[1745435906379,0.30911014,93252.0,93251.0,0.002]
[1745435907706,0.20719014,93252.0,93251.0,0.002]
[1745435907912,0.30911014,93252.0,93251.0,0.002]
[1745435910412,0.009,93252.0,93251.0,0.55647491]
[1745435911247,0.009,93252.0,93251.0,0.342]
[1745435912350,0.11092,93252.0,93251.0,0.002]
[1745435913032,0.21781014,93252.0,93251.0,0.002]
[1745435913856,0.11589014,93252.0,93251.0,0.002]
[1745435914057,0.21781014,93252.0,93251.0,0.002]
[1745435914978,0.26361014,93252.0,93251.0,0.002]
[1745435915399,0.56765692,93252.0,93251.0,0.002]
[1745435916224,0.5402236,93252.0,93251.0,0.002]
[1745435916639,0.32575099,93252.0,93251.0,0.002]
[1745435917251,0.30917014,93252.0,93251.0,0.002]
[1745435918633,0.20929014,93252.0,93251.0,0.002]
[1745435918832,0.30917014,93252.0,93251.0,0.002]
[1745435919530,0.26337014,93252.0,93251.0,0.002]
[1745435922370,0.16349014,93252.0,93251.0,0.21447491]
[1745435922539,0.26337014,93252.0,93251.0,0.21447491]
[1745435923082,0.26337014,93252.0,93249.0,0.21447736]
[1745435923221,0.10689014,93251.0,93249.0,0.21447736]
[1745435923425,0.10689014,93251.0,93248.0,0.21447968]
[1745435923634,0.09988,93250.0,93248.0,0.21447968]
[1745435924321,0.09988,93250.0,93249.0,0.001]
[1745435924883,0.09988,93250.0,93248.0,0.21447968]
[1745435925079,0.20677014,93251.0,93250.0,0.21447721]
[1745435925285,0.09988,93253.0,93252.0,0.21447261]
[1745435927511,0.11088,93253.0,93252.0,0.21647261]
[1745435929119,0.11088,93253.0,93252.0,0.002]
[1745435933087,0.26557014,93253.0,93252.0,0.002]
[1745435941392,0.011,93253.0,93252.0,0.002]
[1745435944243,0.11789014,93253.0,93252.0,0.002]
[1745435945410,0.13243099,93253.0,93252.0,0.002]
[1745435949700,0.23039099,93253.0,93252.0,0.002]
[1745435950160,0.27869099,93253.0,93252.0,0.002]
[1745435950363,0.27869099,93253.0,93231.0,0.002]
[1745435950364,0.21450941,93236.0,93231.0,0.002]
[1745435950532,0.4336404,93236.0,93231.0,0.002]
[1745435951529,0.43377993,93236.0,93231.0,0.002]
[1745435951724,0.43977993,93236.0,93235.0,0.0014256]
[1745435952707,0.44677993,93236.0,93235.0,0.0024256]
[1745435952914,0.54021177,93236.0,93235.0,0.0024256]
[1745435953130,0.22905947,93232.0,93231.0,0.002]
[1745435953347,0.32056637,93229.0,93225.0,0.0004249]
[1745435953594,0.32057327,93226.0,93225.0,0.0004249]
[1745435953786,0.53435355,93226.0,93225.0,0.0004249]
[1745435953982,0.22908018,93223.0,93222.0,0.20405]
[1745435954211,0.43317032,93223.0,93222.0,0.20405]
[1745435955171,0.43317032,93223.0,93222.0,0.15405]
[1745435955799,0.43817032,93223.0,93222.0,0.15405]
[1745435956124,0.54506046,93223.0,93222.0,0.15405]
[1745435956724,0.55006046,93223.0,93222.0,0.15405]
[1745435957314,0.22912161,93205.0,93204.0,0.0003852]
[1745435957507,0.22912161,93205.0,93197.0,0.0004252]
[1745435957508,0.21458536,93203.0,93197.0,0.0004252]
[1745435957711,0.22913082,93201.0,93197.0,0.0004252]
[1745435958120,0.32713082,93201.0,93197.0,0.0004252]
[1745435958687,0.10697488,93201.0,93197.0,0.2150228]
[1745435959107,0.10697488,93201.0,93197.0,0.0004252]
[1745435960064,0.10897488,93201.0,93197.0,0.21502435]
[1745435960257,0.11597488,93201.0,93199.0,0.21459417]
[1745435960553,0.00908474,93201.0,93199.0,0.21459417]
[1745435960734,0.01108474,93201.0,93200.0,0.3501]
[1745435960948,0.33256485,93201.0,93200.0,0.0101]
[1745435961150,0.11797488,93201.0,93200.0,0.0101]
[1745435961679,0.11097488,93201.0,93200.0,0.0101]
[1745435962038,0.11297488,93201.0,93200.0,0.0101]
[1745435962239,0.10897488,93201.0,93200.0,0.0101]
[1745435962453,0.10697488,93201.0,93200.0,0.0111]
[1745435962636,0.11097488,93201.0,93200.0,0.0111]
[1745435962818,0.11097488,93201.0,93200.0,0.0101]
[1745435963155,0.32656485,93201.0,93200.0,0.0101]
[1745435963394,0.00508474,93201.0,93200.0,0.4451]
[1745435964733,0.00208474,93201.0,93200.0,0.4451]
[1745435964932,0.00308474,93201.0,93200.0,0.4451]
[1745435965138,0.00308474,93201.0,93200.0,0.0567]
[1745435965964,0.00108474,93201.0,93200.0,0.0567]
[1745435966345,0.00208474,93201.0,93200.0,0.0577]
[1745435966748,0.00208474,93201.0,93200.0,0.27229227]
[1745435969903,0.00208474,93201.0,93200.0,0.0577]
[1745435970801,0.00208474,93201.0,93200.0,0.27229227]
[1745435971010,0.00208474,93201.0,93200.0,0.27129227]
[1745435972487,0.00208474,93201.0,93200.0,0.0567]
[1745435973365,0.00208474,93201.0,93200.0,0.27129227]
[1745435973591,0.00208474,93201.0,93200.0,0.0567]
[1745435973848,0.00208474,93201.0,93200.0,0.27129227]
[1745435975434,0.00208474,93201.0,93200.0,0.0567]
[1745435979587,0.00208474,93201.0,93200.0,0.0577]
[1745435979800,0.00208474,93201.0,93200.0,0.3977]
[1745435980024,0.00208474,93201.0,93200.0,0.445]
[1745435980527,0.00108474,93201.0,93200.0,0.445]
[1745435980954,0.00208474,93201.0,93200.0,0.445]
[1745435981384,0.00108474,93201.0,93200.0,0.0577]
[1745435981660,0.32356485,93201.0,93200.0,0.0121]
[1745435981870,0.21586502,93201.0,93200.0,0.0121]
[1745435982081,0.21486502,93201.0,93200.0,0.0101]
[1745435982294,0.10897488,93201.0,93200.0,0.0111]
[1745435982704,0.10797488,93201.0,93186.0,0.01073122]
[1745435982929,0.10689014,93200.0,93186.0,0.01073122]
[1745435983127,0.10689014,93200.0,93191.0,0.21461299]
[1745435983330,0.10689014,93200.0,93198.0,0.21459471]
[1745435984080,0.10789014,93200.0,93198.0,0.21459471]
[1745435984241,0.10989014,93200.0,93198.0,0.21459471]
[1745435984662,0.10789014,93200.0,93198.0,0.21459471]
[1745435985060,0.11189014,93200.0,93198.0,0.21559471]
[1745435985294,0.11089014,93200.0,93198.0,0.21559471]
[1745435985656,0.11489014,93200.0,93198.0,0.21559471]
[1745435987688,0.008,93200.0,93199.0,0.34]
[1745435988880,0.004,93200.0,93199.0,0.34]
[1745435989103,0.008,93200.0,93199.0,0.34]
[1745435989314,0.004,93200.0,93199.0,0.34]
[1745435989524,0.008,93200.0,93199.0,0.34]
[1745435989985,0.11489014,93200.0,93194.0,0.34]
[1745435990189,0.10689014,93199.0,93194.0,0.34]
[1745435990403,0.01073007,93196.0,93185.0,0.06666667]
[1745435990606,0.10689014,93195.0,93185.0,0.06666667]
[1745435990808,0.11040377,93195.0,93185.0,0.06666667]
[1745435991140,0.11040377,93195.0,93194.0,0.001]
[1745435991334,0.32500755,93195.0,93194.0,0.001]
[1745435991527,0.32149392,93195.0,93194.0,0.001]
[1745435991954,0.38939427,93195.0,93194.0,0.001]
[1745435992156,0.32149392,93195.0,93194.0,0.001]
[1745435992387,0.32149392,93195.0,93185.0,0.06666667]
[1745435992388,0.21462451,93186.0,93185.0,0.06666667]
[1745435992607,0.21462451,93186.0,93185.0,0.06766667]
[1745435992816,0.01073099,93188.0,93185.0,0.06766667]
[1745435993045,0.21461801,93189.0,93185.0,0.06766667]
[1745435993046,0.01073088,93189.0,93185.0,0.06766667]
[1745435993384,0.11762102,93189.0,93185.0,0.06666667]
[1745435993594,0.001,93186.0,93185.0,0.06766667]
[1745435994137,0.10689014,93189.0,93185.0,0.06666667]
[1745435994819,0.001,93188.0,93185.0,0.06866667]
[1745435995026,0.001,93188.0,93185.0,0.06766667]
[1745435995463,0.001,93188.0,93185.0,0.06866667]
[1745435995666,0.10889014,93189.0,93185.0,0.06766667]
[1745435996058,0.001,93188.0,93185.0,0.06866667]
[1745435996262,0.001,93188.0,93185.0,0.06766667]
[1745435996663,0.002,93188.0,93185.0,0.06866667]
[1745435997458,0.001,93188.0,93185.0,0.06766667]
[1745435997660,0.001,93188.0,93185.0,0.06866667]
[1745435998263,0.002,93188.0,93185.0,0.06966667]
[1745435998473,0.002,93188.0,93187.0,0.34]
[1745435999530,0.001,93188.0,93187.0,0.34]
[1745435999734,0.002,93188.0,93187.0,0.341]
[1745436000492,0.001,93188.0,93187.0,0.4358]
[1745436000923,0.001,93188.0,93187.0,0.4368]
[1745436001343,8.474e-05,93201.0,93200.0,0.55459227]
[1745436001558,8.474e-05,93201.0,93200.0,0.55562056]
[1745436001718,8.474e-05,93201.0,93200.0,0.29382829]
[1745436002336,8.474e-05,93201.0,93195.0,0.01073018]
[1745436002732,0.00108474,93201.0,93200.0,0.002]
[1745436003416,8.474e-05,93201.0,93199.0,0.21459457]
[1745436003540,0.00208474,93201.0,93200.0,0.34]
[1745436003750,0.00508474,93201.0,93200.0,0.34]
[1745436003949,0.00308474,93201.0,93200.0,0.34]